Cogmind - Beta 13 @@@ ROGUE MODE // 2024.07.28 @ 14:04:00 Player: Sgt. SmokeWeed Result: Destroyed by as-25134 with Assembled Rifle Performance ------------- Evolutions (0) 0 Regions Visited (2) 400 Robots Destroyed (20) 100 Value Destroyed (290) 290 Prototype IDs (0) 0 Alien Tech Used (0) 0 Bonus (-31) -31 TOTAL SCORE: 759 Bonus ------- Friendly Fire -31 Cogmind --------- Core Integrity 0/250 Matter 90/300 Energy 125/125 System Corruption 2% Temperature Cool (14) Movement Rolling (80) Location -10/Mines Parts ------- > --- POWER (1) -------- Light Ion Engine > --- PROPULSION (2) --- Wheel Wheel > --- UTILITY (2) ------ (None) > --- WEAPON (2) ------- Light Cannon Rocket Launcher > --- INVENTORY (5) ---- Light Cannon Grenade Launcher Rocket Launcher Peak State ------------ > --- POWER ------------ Ion Engine > --- PROPULSION ------- Light Treads Light Treads > --- UTILITY ---------- Tractor Beam > --- WEAPON ----------- EM Pulse Gun Rocket Launcher > --- INVENTORY -------- (None) [Rating: 7] Favorites ----------- Power Ion Engine Engine Ion Engine Propulsion Light Treads Treads Light Treads Wheel Wheel Utility Tractor Beam Device Tractor Beam Weapon Rocket Launcher Energy Gun EM Pulse Gun Ballistic Cannon Light Cannon Launcher Rocket Launcher Build | -11 -10 -10 ------- Run | Yrd Mat Min Slots Evolved . | . . . Power . | . . . Propulsion . | . . . Utility . | . . . Weapon . | . . . Parts Attached 15 | 5 5 5 Power 2 | 1 . 1 Engine 2 | 1 . 1 Core . | . . . Reactor . | . . . Propulsion 5 | 2 1 2 Treads 3 | 2 1 . Leg . | . . . Wheel 2 | . . 2 Hover . | . . . Flight . | . . . Utility 1 | . 1 . Device 1 | . 1 . Storage . | . . . Processor . | . . . Hackware . | . . . Protection . | . . . Artifact . | . . . Weapon 7 | 2 3 2 Energy Gun 2 | 2 . . Energy Cannon . | . . . Ballistic Gun . | . . . Ballistic Cannon 2 | . 1 1 Launcher 3 | . 2 1 Special Weapon . | . . . Impact Weapon . | . . . Slashing Weapon . | . . . Piercing Weapon . | . . . Special Melee Weapon . | . . . Unidentified Prototypes . | . . . Parts Lost 7 | . 2 5 Power 1 | . . 1 Propulsion 2 | . . 2 Utility 1 | . 1 . Weapon 3 | . 1 2 Highest Loss Streak 5 | . 2 5 To Critical Strikes . | . . . Average Slot Usage (%) 75 | . 79 67 Engine 13 | . 14 13 Treads 24 | . 28 16 Wheel 3 | . . 9 Device 5 | . 8 . Energy Gun 4 | . 6 . Ballistic Cannon 11 | . 9 13 Launcher 12 | . 11 13 Naked Turns 10 | . . 10 Heaviest Build 13 | 9 13 12 Greatest Support 40 | 40 40 40 Greatest Overweight (x) 3 | 2 . 3 Average Overweight (x) . | . . . Largest Inventory Capacity 5 | 5 5 5 Average Capacity 5 | 5 5 5 Most Carried 5 | . 5 5 Average Carried 3 | . 3 4 Final Capacity 5 | 5 5 5 Final Carried 5 | . 5 3 Class Distribution -------------------- 100% | Mutant Dominant Class ---------------- Mutant | -10/Materials Mutant | -10/Mines Resources | -11 -10 -10 ----------- Run | Yrd Mat Min Matter Collected 489 | 231 93 165 Remotely 85 | . 85 . Salvage Created 316 | . 272 44 Parts 36 | . 31 5 Haulers Intercepted 1 | . 1 . Recyclers Shooed . | . . . Parts Field Recycled . | . . . Retrieved Matter . | . . . Parts Self-Destructed . | . . . Prevented . | . . . Kills | -11 -10 -10 ------- Run | Yrd Mat Min Combat Hostiles Destroyed 14 | . 11 3 Cannons 3 | . 2 1 AOE 11 | . 9 2 Classes Destroyed 9 | . 7 2 Worker 1 | . . 1 Builder 3 | . 2 1 Hauler 1 | . 1 . Recycler 1 | . 1 . Operator 1 | . 1 . Watcher 2 | . 2 . Swarmer 9 | . 9 . Grunt 2 | . 2 . Assembled 3 | . . 3 Best Kill Streak 6 | . 6 2 Combat Bots Only 3 | . 3 2 Max Kills in Single Turn 3 | . 3 1 Gunslinging . | . . . Exploded 3 | . 3 1 Melee . | . . . Uniques/NPCs Destroyed . | . . . Combat | -11 -10 -10 -------- Run | Yrd Mat Min Hostile Shots Fired 68 | . 50 18 Missed 15 | . 12 3 Damage Taken 981 | . 417 564 Core 253 | . 33 220 Absorbed by Shields . | . . . Core Remaining (%) 100 | 100 . . Volleys Fired 37 | . 27 10 Largest 2 | . 2 2 Hottest 73 | . 73 68 Shots Fired 58 | . 41 17 Gun 5 | . 5 . Cannon 32 | . 22 10 Launcher 21 | . 14 7 Special . | . . . Kinetic 32 | . 22 10 Thermal . | . . . Explosive 21 | . 14 7 Electromagnetic 5 | . 5 . Robot Hit Streak 6 | . 3 6 Robot Miss Streak 3 | . 3 2 Penetration Max . | . . . Secondary Targets . | . . . Shots Hit Robots 24 | . 16 8 Core Hits 26 | . 15 11 Critical Kills . | . . . Critical Parts Destroyed . | . . . Critical Strikes 2 | . . 2 Blast 2 | . . 2 Melee Attacks . | . . . Impact . | . . . Slashing . | . . . Piercing . | . . . Sneak Attacks . | . . . Combat Hostiles . | . . . Follow-up Attacks . | . . . Damage Inflicted 1420 | . 1065 355 Guns 54 | . 54 . Cannons 259 | . 142 117 Explosions 1080 | . 850 230 Melee . | . . . Ramming 27 | . 19 8 Kinetic 259 | . 142 117 Thermal 63 | . 63 . Explosive 1017 | . 787 230 Electromagnetic 54 | . 54 . Impact . | . . . Slashing . | . . . Piercing . | . . . Highest Corruption 2 | . 2 2 Average Corruption 1 | . 1 2 Corruption Purged . | . . . Corruption Blocked . | . . . Effects 15 | . 8 7 Message Errors 3 | . 2 1 Matter Fused 4 | . 3 1 Energy Discharges 3 | . . 3 Parts Rejected 1 | . 1 . Data Loss (minor) 1 | . . 1 Data Loss (major) 2 | . 1 1 Misfires 1 | . 1 . Overload Shots . | . . . Overflow Damage 173 | . 173 . Projectiles . | . . . Explosions 173 | . 173 . Melee . | . . . Knockbacks 5 | . 3 2 Impact . | . . . Kinetic 5 | . 3 2 Secondary . | . . . Self-Inflicted Damage 147 | . 104 43 Shots 5 | . 3 2 Rammed 8 | . 6 2 Targets Rammed 8 | . 6 2 Kicked . | . . . Crushed . | . . . Highest Temperature 24 | . 24 14 Average Temperature 7 | . 8 6 Received Heat Transfer 48 | . 48 . Siege Activations . | . . . Robots Corrupted . | . . . Combat Hostiles . | . . . Parts Fried . | . . . Impact Corruptions . | . . . Robots Melted . | . . . Combat Hostiles . | . . . Parts Melted . | . . . Heat Transferred 50 | . 50 . Parts Sabotaged . | . . . Parts Stolen . | . . . Parts Stripped . | . . . Power Chain Reactions . | . . . Alert | -11 -10 -10 ------- Run | Yrd Mat Min Peak Influence 385 | . 385 183 Initial 150 | . . 150 Average 127 | . 136 139 Maximum Alert Level 1 | . 1 . Low Security (%) 83 | 100 72 100 Level 1 16 | . 27 . Level 2 . | . . . Level 3 . | . . . Level 4 . | . . . Level 5 . | . . . High Security . | . . . Max Security . | . . . Squads Dispatched 2 | . 2 . Investigation 1 | . 1 . Extermination . | . . . Reinforcement 1 | . 1 . Assault . | . . . Garrison . | . . . Intercept . | . . . Searches Triggered . | . . . Construction Impeded . | . . . Haulers Reinforced . | . . . Active Scanning Responses . | . . . Cargo Convoy Interrupts . | . . . Stealth | -11 -10 -10 --------- Run | Yrd Mat Min Distress Signals . | . . . Communications Jammed . | . . . Distress Signals . | . . . Times Spotted 34 | . 18 16 Peak Tracking Total 8 | . 5 8 Tactical Retreats 2 | . . 2 Traps | -11 -10 -10 ------- Run | Yrd Mat Min Traps Triggered 3 | . 3 . Indirectly . | . . . Trap Hack Attempts . | . . . Triggered . | . . . Disarmed . | . . . Reprogrammed . | . . . Reused . | . . . Traps Extracted . | . . . Installed . | . . . Triggered . | . . . Machines | -11 -10 -10 ---------- Run | Yrd Mat Min Machines Disabled 6 | . 6 . Max in Single Turn 3 | . 3 . Machines Repaired . | . . . Machines Dismantled . | . . . Machines Sabotaged . | . . . Overloaded Fab Kills . | . . . Hacking | -11 -10 -10 --------- Run | Yrd Mat Min Machines Accessed 1 | . 1 . Terminals 1 | . 1 . Fabricators . | . . . Repair Stations . | . . . Recycling Units . | . . . Scanalyzers . | . . . Garrison Access . | . . . Total Hacks 5 | . 5 . Successful 2 | . 2 . Failed 3 | . 3 . Catastrophic . | . . . Database Lockouts . | . . . Manual . | . . . Terminals 5 | . 5 . Fabricators . | . . . Repair Stations . | . . . Recycling Units . | . . . Scanalyzers . | . . . Garrison Access . | . . . Terminal Hacks 2 | . 2 . Robot Analysis 1 | . 1 . Hauler Manifests 1 | . 1 . Fabricator Hacks . | . . . Repair Station Hacks . | . . . Recycling Unit Hacks . | . . . Scanalyzer . | . . . Garrison Access Hacks . | . . . Unauthorized Hacks . | . . . Terminals . | . . . Fabricators . | . . . Repair Stations . | . . . Recycling Units . | . . . Scanalyzers . | . . . Garrison Access . | . . . Data Cores Recovered . | . . . Used . | . . . Hacking Detections 1 | . 1 . Full Trace Events 1 | . 1 . Feedback Events . | . . . Feedback Blocked . | . . . Robot Schematics Acquired . | . . . Robots Built . | . . . Authchips . | . . . Time . | . . . Total Robot Build Rating . | . . . Part Schematics Acquired . | . . . Parts Built . | . . . Authchips . | . . . Time . | . . . Total Part Build Rating . | . . . Parts Repaired . | . . . Time . | . . . Parts Recycled . | . . . Recycled Matter . | . . . Retrieved Matter . | . . . Retrieved Components . | . . . Parts Scanalyzed . | . . . Part Schematics Acquired . | . . . Parts Damaged . | . . . Bothacking | -11 -10 -10 ------------ Run | Yrd Mat Min Used RIF Installer . | . . . Robots Hacked . | . . . Non-combat . | . . . Combat . | . . . Robot Hacks Applied . | . . . Relay Couplers Released . | . . . Fabnet Peak Effective % . | . . . Robots Rewired . | . . . Allies Hacked . | . . . Hacks Repelled . | . . . Allies | -11 -10 -10 -------- Run | Yrd Mat Min Total Allies . | . . . Largest Group . | . . . Highest-Rated Group . | . . . Highest-Rated Ally . | . . . Total Orders . | . . . Ally Attacks . | . . . Total Damage . | . . . Kills . | . . . Allies Corrupted . | . . . Allies Melted . | . . . Intel | -11 -10 -10 ------- Run | Yrd Mat Min Robot Analysis Total 1 | . 1 . Derelict Logs Recovered 2 | . . 2 Drone Launches . | . . . Drone Recoveries . | . . . Exploration | -11 -10 -10 ------------- Run | Yrd Mat Min Turns Passed 1299 | 94 789 416 Spaces Moved 822 | 60 437 325 Core 33 | 9 . 24 Treads 637 | 51 437 149 Legs . | . . . Wheels 152 | . . 152 Hover . | . . . Flight . | . . . Fastest Speed 50 | 50 160 50 Average Speed 141 | 146 160 116 Slowest Speed 200 | 160 160 200 Overloaded Moves . | . . . Propulsion Burnouts . | . . . Robots Hopped . | . . . Cave-ins Triggered . | . . . Exploration Rate (%) 45 | 4 76 56 Regions Visited 2 Branch Regions 1 Pre-discovered Areas 1 | . . 1 Known Exits Taken . | . . . Unknown Exits Taken 2 | 1 1 . Scrap Searched 1 | . . 1 Spaces Dug . | . . . Terrain Destroyed 223 | . 160 63 Melee . | . . . Projectile 1 | . 1 . AOE 222 | . 159 63 Terrain Rammed . | . . . Walls Destroyed . | . . . Machines Disabled . | . . . Actions | -11 -10 -10 --------- Run | Yrd Mat Min Total 889 | 64 482 343 Wait 1 | . . 1 Move 820 | 59 436 325 Hop . | . . . Pick Up 6 | . 6 . Fast Attach 12 | 5 4 3 Attach 3 | . 1 2 Detach . | . . . Swap . | . . . Drop 2 | . 2 . Fire 37 | . 27 10 Melee . | . . . Ram . | . . . Kick . | . . . Crush 8 | . 6 2 Escape Stasis . | . . . Rewire . | . . . Trap . | . . . Miscellaneous . | . . . Route ------- -11/Scrapyard -10/Materials (discovered 3 exits: [*Mat x2] / [*Min]) -10/Mines History --------- Turn | Location | Event 5 | -11/Scrapyard | Discovered new exit (range 16) 95 | -11/Scrapyard | Entered Materials 318 | -10/Materials | Build established: Mutant 375 | -10/Materials | Discovered new exit (range 16) 590 | -10/Materials | Discovered new exit (range 16) 848 | -10/Materials | Discovered new exit (range 13) 884 | -10/Materials | Entered Mines 891 | -10/Mines | Met a Derelict bent on vengeance 896 | -10/Mines | Learned location of Zion (-7) 948 | -10/Mines | Learned 4 Materials zone layouts 1117 | -10/Mines | Assembled infested the area 1122 | -10/Mines | Assisted by a Guerilla fighting off Assembled 1134 | -10/Mines | Core integrity fell below 50% 1163 | -10/Mines | Lost 5 parts (1p2n2w) 1299 | -10/Mines | Core integrity fell below 20% 1300 | -10/Mines | Destroyed by as-25134 with Assembled Rifle Last Messages --------------- Acquired Wheel. R-06 Scavenger collects Wheel. Acquired 2 matter. System corrupted: Energy discharge (-46). R-06 Scavenger collects Wheel. K-01 Serf collects debris. A#R|K#&MNK5LOP#E PWVU1/WA#&MFO=I K-01 Serf cleans the Core Extractor. as-55567 knocked back. as-55567 suffers critical hit (Blast). as-55567 destroyed. K-01 Serf cleans the Core Extractor. Acquired 2 matter. Acquired 1 matter. as-00046 destroyed. System corrupted: Energy discharge (-30). Acquired 59 matter. Acquired 8 matter. Acquired 19 matter. as-25134 knocked back. Map ----- +----------------------------------------------------+ | ???????????????????# ##????# ## #?? | | ???????????????????# ##???# ? #??? | | ????????????????????# ##??# #?# #???? | | ?????????????????????# #### ### #????? | | ?????????????????????# #????? | | ??????????????????????# ####### #????? | | ??????????????????????## ##?????# #????? | | ???????????????????????## ##??????# #????? | | ????????????????????????## ##????#### #????? | | ?????????????????????????## ! ##?????# #????? | | ??????????????????????????###=%##??????# ####????? | | ????????????????????????????# |#???????# #???????? | | ????????????????????????????# #??????? ???????? | | ????????????????????????????# #??????? ???????? | | ????????????????"???????????# #??????? ???????? | | ??????????????? ???????????# #??????? ???????? | | ??????????????? ???????????# #??????? ???????? | | ?????????? ##### ???????????# #???????# #???????? | | ?????????? !% ???????????# #???????# #???????? | | ??????????? |*#??????????# #########[#???????? | | ????????????# !%! #?????##### =## # [#???????? | | ???????????## % #???## # ! # ### #???????? | | ???????????# #### * ! = = #?#[#???????? | | ???????????# # ## = ###?#!#???????? | | ???????????# # ##### ##???# #???????? | | ???????????### ## @##???####????# #???????? | | ??????? # %## a #????????????# #???????? | | ??????????# *a #????????????# #?###???? | | ??????????# a ##????????????# ### #???? | | ??????????# #?????????##### #???? | | ?????????# ############ #???# | | ?????????# ## ### + #??## | | ????????????# ###### + #### | | ?????????????# #?# ### ## ## | | ?????????????## #?# #?## ###### | | ?????????????? ###??# ##?####????# | | ?????????????? ?????# #?????????## """ | | ????????????? ??????## #??????????## """ | | ????????????## # ???????## ##???????????# """ # | | ?????????????# ## ????????####???????????## # | | ?????????????# ?##???????????????????????## | | ?????????????#??????????????????????????## | | ??????????????????????????????????????### | | ?????????????????????????????????????## | | ?????????????????????????????????????# #### | | ?????????????????????????????????????# ##??## | | ?????????????????????????????????????# #????# | | ????????????????????????????????????# #???# # | | ???????????????????????????????????# #???# # | | ???????????????????????????????????# #???## ## | +----------------------------------------------------+ Best States ------------- Heat Dissipation 25 Energy Generation 10 Energy Capacity 250 Matter Stores 300 Matter Capacity 300 Sight Range 16 Terrain Scan Density 10 Evasion (%) 50 Recoil Reduction 2 Item Schematics ----------------- None Robot Schematics ------------------ None Fabricated ------------ Nothing Alien Tech Used ----------------- None Achievements -------------- None Challenges ------------ None Game ------ Seed DisposableNovaTriangulator Manual? 0 Play Time 00:16:42 Cumulative 50.1 hours Start 2024.07.27 @ 23:39:08 End 2024.07.28 @ 14:04:00 Sessions 2 Manual Loads 0 Difficulty Rogue Special Mode None Game No. 112 Rogue 42 Adventurer 70 Explorer 0 Win Type - Total 0 Types 0/0/0/0/0/0/0/0/0 Lore% 34 Gallery% 37 Achievement% 30 Wizard Run 0 Options --------- Layout 0 ASCII 0 Keyboard 0 Movement Mouse Keybinds 0 Fullscreen 1 Font 24/Smallcaps Map View 76x50 Zoom Use 0% Tactical HUD 0 Map Filters NONE Filters NONE Steam 1 RUN: db2e6e0b-07da-400b-89de-a286026ccca4